Cogmind - Beta 14 @@@ ROGUE MODE // 2024.11.10 @ 10:16:42 Player: Shimmyarah Result: Destroyed by G-47 Trooper with Particle Gun Performance ------------- Evolutions (2) 1000 Regions Visited (4) 800 Robots Destroyed (49) 245 Value Destroyed (1048) 1048 Prototype IDs (2) 40 Alien Tech Used (0) 0 Bonus (25) 25 TOTAL SCORE: 3158 Bonus ------- Follower Combat Kills 25 Cogmind --------- Core Integrity 0/550 Matter 28/300 Energy 100/100 System Corruption 3% Temperature Cool (18) Movement Core (200) Ox3 Location -8/Materials Parts ------- > --- POWER (2) -------- (None) > --- PROPULSION (3) --- (None) > --- UTILITY (3) ------ Medium Storage Unit > --- WEAPON (3) ------- (None) > --- INVENTORY (10) --- Weight Redist. System Improved Sensor Array Signal Interpreter Signal Interpreter Improved Signal Interpreter Grenade Launcher Rocket Launcher Peak State ------------ > --- POWER ------------ Heavy Ion Engine Light Nuclear Core > --- PROPULSION ------- Improved Aluminum Leg Carbon-fiber Leg Titanium Leg > --- UTILITY ---------- Medium Storage Unit Improved Terrain Scanner Seismic Detector > --- WEAPON ----------- Shotgun Makeshift Shrapnel Gun Light Cannon > --- INVENTORY -------- Ion Engine Improved Ion Engine Improved Heat Sink Weight Redist. System Signal Interpreter Signal Interpreter Improved Signal Interpreter Grenade Launcher Rocket Launcher Mining Laser [Rating: 27] Favorites ----------- Power Ion Engine Engine Ion Engine Power Core Light Nuclear Core Propulsion Aluminum Leg Treads Light Treads Leg Aluminum Leg Flight Unit Improved Flight Unit Utility Small Storage Unit Device Seismic Detector Storage Small Storage Unit Weapon Light Cannon Ballistic Gun Assault Rifle Ballistic Cannon Light Cannon Launcher Grenade Launcher Special Weapon Mining Laser Build | -11 -10 -9 -9 -8 ------- Run | Yrd Mat Mat Min Mat Slots Evolved 4 | . . 2 . 2 Power 1 | . . . . 1 Propulsion 1 | . . . . 1 Utility 1 | . . 1 . . Weapon 1 | . . 1 . . Parts Attached 41 | 7 8 6 3 17 Power 9 | 1 2 . 1 5 Engine 7 | 1 2 . 1 3 Core 2 | . . . . 2 Reactor . | . . . . . Propulsion 8 | 2 2 . 2 2 Treads 2 | 2 . . . . Leg 5 | . 2 . 2 1 Wheel . | . . . . . Hover . | . . . . . Flight 1 | . . . . 1 Utility 7 | 2 1 1 . 3 Device 5 | 1 1 1 . 2 Storage 2 | 1 . . . 1 Processor . | . . . . . Hackware . | . . . . . Protection . | . . . . . Artifact . | . . . . . Weapon 17 | 2 3 5 . 7 Energy Gun . | . . . . . Energy Cannon . | . . . . . Ballistic Gun 10 | 2 1 2 . 5 Ballistic Cannon 2 | . 2 . . . Launcher 2 | . . 1 . 1 Special Weapon 3 | . . 2 . 1 Impact Weapon . | . . . . . Slashing Weapon . | . . . . . Piercing Weapon . | . . . . . Special Melee Weapon . | . . . . . Unidentified Prototypes 2 | . . . . 2 Parts Lost 17 | . . . . 17 Power 3 | . . . . 3 Propulsion 3 | . . . . 3 Utility 4 | . . . . 4 Weapon 7 | . . . . 7 Highest Loss Streak 9 | . . . . 9 To Critical Strikes 1 | . . . . 1 Average Slot Usage (%) 94 | . 99 100 100 83 Engine 11 | . 14 11 11 10 Core 1 | . . . . 5 Treads 5 | . 19 . . . Leg 17 | . 8 22 22 19 Device 17 | . 14 22 22 15 Storage 11 | . 14 11 11 9 Ballistic Gun 16 | . 27 9 11 15 Ballistic Cannon 11 | . . 22 22 8 Peak Build Rating 27 | 9 9 10 14 27 Average Rating 13 | 6 8 9 12 21 On Entrance 8 | . 9 8 10 14 Naked Turns . | . . . . . Heaviest Build 34 | 15 17 21 21 34 Greatest Support 45 | 40 40 20 28 45 Greatest Overweight (x) 9 | . 1 1 1 9 Average Overweight (x) . | . . . . . Largest Inventory Capacity 10 | 8 8 8 8 10 Average Capacity 8 | 7 8 8 8 9 Most Carried 10 | 3 8 7 8 10 Average Carried 6 | . 6 6 7 8 Final Capacity 10 | 8 8 8 8 10 Final Carried 8 | 2 8 7 8 7 Class Distribution -------------------- 39% | Skirmisher 36% | Mutant 13% | Scavenger-Skirmisher 5% | Scavenger-Mutant 5% | Gunner Dominant Class ---------------- Mutant | -10/Materials Skirmisher | -9/Materials Skirmisher | -9/Mines Scavenger-Skirmisher | -8/Materials Resources | -11 -10 -9 -9 -8 ----------- Run | Yrd Mat Mat Min Mat Matter Collected 1364 | 450 210 . 224 480 Remotely . | . . . . . Salvage Created 1319 | 334 379 . 122 484 Parts 101 | 27 32 . 10 32 Haulers Intercepted 1 | . . . . 1 Recyclers Shooed 2 | . 1 . . 1 Parts Field Recycled . | . . . . . Retrieved Matter . | . . . . . Parts Self-Destructed . | . . . . . Prevented . | . . . . . Kills | -11 -10 -9 -9 -8 ------- Run | Yrd Mat Mat Min Mat Combat Hostiles Destroyed 27 | . 8 . 4 15 Melee 1 | . . . . 1 Guns 19 | . 8 . 2 9 Cannons 7 | . . . 2 5 Classes Destroyed 12 | 3 4 . 2 3 Worker 6 | 2 4 . . . Builder 2 | . 2 . . . Tunneler 8 | 8 . . . . Hauler 1 | . . . . 1 Recycler 2 | 1 . . . 1 Watcher 3 | . 2 . . 1 Swarmer 9 | . 3 . . 6 Grunt 10 | . 5 . 2 3 Brawler 1 | . . . 1 . Duelist 1 | . . . 1 . Sentry 4 | . . . . 4 Hunter 2 | . . . . 2 Best Kill Streak 7 | 4 7 . 2 6 Combat Bots Only 6 | . 3 . 2 6 Max Kills in Single Turn 2 | 1 2 . 1 1 Gunslinging 1 | . 1 . . . Exploded . | . . . . . Melee 1 | . . . . 1 Uniques/NPCs Destroyed . | . . . . . Combat | -11 -10 -9 -9 -8 -------- Run | Yrd Mat Mat Min Mat Hostile Shots Fired 269 | . 48 . 10 211 Missed 61 | . 8 . 2 51 Damage Taken 2840 | . 442 . 120 2278 Core 655 | . 99 . . 556 Absorbed by Shields . | . . . . . Core Remaining (%) 86 | 100 60 . 100 . Volleys Fired 151 | 30 42 9 10 60 Largest 3 | 2 2 3 3 3 Hottest 100 | 40 40 100 93 93 Shots Fired 338 | 60 84 11 30 153 Gun 238 | 60 84 1 10 83 Cannon 92 | . . 2 20 70 Launcher . | . . . . . Special 8 | . . 8 . . Kinetic 330 | 60 84 3 30 153 Thermal 8 | . . 8 . . Explosive . | . . . . . Electromagnetic . | . . . . . Robot Hit Streak 12 | 12 8 . 9 10 Robot Miss Streak 10 | 2 3 6 7 10 Penetration Max . | . . . . . Secondary Targets 3 | . 2 . . 1 Max Gunslinging Chain 1 | . 1 . . 1 Shots Hit Robots 182 | 36 51 . 18 77 Core Hits 100 | 12 21 . 8 59 Critical Kills 1 | . 1 . . . Critical Parts Destroyed 1 | . . . . 1 Critical Strikes 4 | . 1 . . 3 Destroy 2 | . 1 . . 1 Blast 2 | . . . . 2 Melee Attacks . | . . . . . Impact . | . . . . . Slashing . | . . . . . Piercing . | . . . . . Sneak Attacks . | . . . . . Combat Hostiles . | . . . . . Follow-up Attacks . | . . . . . Damage Inflicted 2863 | 456 650 3 305 1449 Guns 2059 | 456 639 . 126 838 Cannons 684 | . . . 176 508 Explosions 25 | . . . . 25 Melee . | . . . . . Ramming 95 | . 11 3 3 78 Kinetic 2743 | 456 639 . 302 1346 Thermal . | . . . . . Explosive . | . . . . . Electromagnetic 25 | . . . . 25 Impact . | . . . . . Slashing . | . . . . . Piercing . | . . . . . Highest Corruption 3 | . 1 . . 3 Average Corruption 1 | . 1 . . 1 Corruption Purged . | . . . . . Corruption Blocked . | . . . . . Effects 12 | . 2 . . 10 Message Errors 2 | . . . . 2 Matter Fused 1 | . . . . 1 Heat Flow Errors 3 | . . . . 3 Data Loss (minor) 2 | . 1 . . 1 Data Loss (major) 2 | . 1 . . 1 Alerts 2 | . . . . 2 Overload Shots . | . . . . . Overflow Damage 12 | . . . . 12 Projectiles 12 | . . . . 12 Explosions . | . . . . . Melee . | . . . . . Knockbacks 10 | . . . 3 7 Impact 1 | . . . . 1 Kinetic 9 | . . . 3 6 Secondary . | . . . . . Self-Inflicted Damage 43 | . . . . 43 Shots 1 | . . . . 1 Rammed 13 | . 4 . . 9 Targets Rammed 35 | . 4 1 2 28 Kicked 22 | . . 1 2 19 Crushed . | . . . . . Highest Temperature 272 | . 3 32 151 272 Average Temperature 65 | . 1 13 68 75 Received Heat Transfer 1089 | . 168 . 30 891 Effects 3 | . . . . 3 Energy Bleed 3 | . . . . 3 Siege Activations . | . . . . . Robots Corrupted . | . . . . . Combat Hostiles . | . . . . . Parts Fried . | . . . . . Impact Corruptions . | . . . . . Robots Melted . | . . . . . Combat Hostiles . | . . . . . Parts Melted . | . . . . . Heat Transferred . | . . . . . Parts Sabotaged . | . . . . . Parts Stolen . | . . . . . Parts Stripped . | . . . . . Power Chain Reactions . | . . . . . Alert | -11 -10 -9 -9 -8 ------- Run | Yrd Mat Mat Min Mat Peak Influence 391 | 55 269 109 95 391 Initial 78 | . 35 78 . 37 Average 122 | 26 137 81 30 229 Maximum Alert Level 1 | . 1 . . 1 Low Security (%) 78 | 100 84 100 100 40 Level 1 21 | . 15 . . 59 Level 2 . | . . . . . Level 3 . | . . . . . Level 4 . | . . . . . Level 5 . | . . . . . High Security . | . . . . . Max Security . | . . . . . Squads Dispatched 6 | . 3 . . 3 Investigation 2 | . 2 . . . Extermination . | . . . . . Reinforcement 4 | . 1 . . 3 Assault . | . . . . . Garrison . | . . . . . Intercept . | . . . . . Searches Triggered . | . . . . . Construction Impeded . | . . . . . Haulers Reinforced . | . . . . . Active Scanning Responses . | . . . . . Cargo Convoy Interrupts . | . . . . . Stealth | -11 -10 -9 -9 -8 --------- Run | Yrd Mat Mat Min Mat Distress Signals 3 | . . 2 . 1 Communications Jammed . | . . . . . Distress Signals . | . . . . . Times Spotted 52 | . 15 . 8 29 Peak Tracking Total 5 | . 4 1 4 5 Tactical Retreats 4 | . 1 . 1 2 Traps | -11 -10 -9 -9 -8 ------- Run | Yrd Mat Mat Min Mat Traps Triggered 2 | . 1 . . 1 Indirectly . | . . . . . Trap Hack Attempts . | . . . . . Triggered . | . . . . . Disarmed . | . . . . . Reprogrammed . | . . . . . Reused . | . . . . . Traps Extracted . | . . . . . Installed . | . . . . . Triggered . | . . . . . Machines | -11 -10 -9 -9 -8 ---------- Run | Yrd Mat Mat Min Mat Machines Disabled 5 | . . . 1 4 Max in Single Turn 2 | . . . 1 2 Machines Repaired . | . . . . . Machines Dismantled . | . . . . . Machines Sabotaged . | . . . . . Overloaded Fab Kills . | . . . . . Hacking | -11 -10 -9 -9 -8 --------- Run | Yrd Mat Mat Min Mat Machines Accessed 8 | . 4 2 . 2 Terminals 7 | . 4 2 . 1 Fabricators . | . . . . . Repair Stations . | . . . . . Recycling Units . | . . . . . Scanalyzers 1 | . . . . 1 Garrison Access . | . . . . . Total Hacks 20 | . 10 3 . 7 Successful 5 | . 1 2 . 2 Failed 15 | . 9 1 . 5 Catastrophic 6 | . 5 . . 1 Database Lockouts . | . . . . . Manual 9 | . 5 . . 4 Terminals 17 | . 10 3 . 4 Fabricators . | . . . . . Repair Stations . | . . . . . Recycling Units . | . . . . . Scanalyzers 3 | . . . . 3 Garrison Access . | . . . . . Terminal Hacks 3 | . 1 2 . . Branch Access Points 1 | . . 1 . . Alert Level 1 | . 1 . . . Investigation Status 1 | . . 1 . . Fabricator Hacks . | . . . . . Repair Station Hacks . | . . . . . Recycling Unit Hacks . | . . . . . Scanalyzer 2 | . . . . 2 Insert Component 1 | . . . . 1 Analyze 1 | . . . . 1 Garrison Access Hacks . | . . . . . Unauthorized Hacks . | . . . . . Terminals . | . . . . . Fabricators . | . . . . . Repair Stations . | . . . . . Recycling Units . | . . . . . Scanalyzers . | . . . . . Garrison Access . | . . . . . Data Cores Recovered . | . . . . . Used . | . . . . . Hacking Detections 8 | . 4 2 . 2 Full Trace Events 3 | . 3 . . . Feedback Events 1 | . 1 . . . Corruption 1 | . 1 . . . Feedback Blocked . | . . . . . Robot Schematics Acquired . | . . . . . Robots Built . | . . . . . Authchips . | . . . . . Time . | . . . . . Total Robot Build Rating . | . . . . . Part Schematics Acquired 1 | . . . . 1 Parts Built . | . . . . . Authchips . | . . . . . Time . | . . . . . Total Part Build Rating . | . . . . . Parts Repaired . | . . . . . Time . | . . . . . Parts Recycled . | . . . . . Recycled Matter . | . . . . . Retrieved Matter . | . . . . . Retrieved Components . | . . . . . Parts Scanalyzed 1 | . . . . 1 Part Schematics Acquired 1 | . . . . 1 Parts Damaged 1 | . . . . 1 Bothacking | -11 -10 -9 -9 -8 ------------ Run | Yrd Mat Mat Min Mat Used RIF Installer . | . . . . . Robots Hacked . | . . . . . Non-combat . | . . . . . Combat . | . . . . . Robot Hacks Applied . | . . . . . Relay Couplers Released . | . . . . . Fabnet Peak Effective % . | . . . . . Robots Rewired . | . . . . . Allies Hacked . | . . . . . Hacks Repelled . | . . . . . Allies | -11 -10 -9 -9 -8 -------- Run | Yrd Mat Mat Min Mat Total Allies 2 | . . . 2 . Largest Group 2 | . . . 2 . Highest-Rated Group 40 | . . . 40 . Highest-Rated Ally 31 | . . . 31 . Total Orders . | . . . . . Ally Attacks 5 | . . . 5 . Total Damage 40 | . . . 40 . Kills 1 | . . . 1 . Allies Corrupted . | . . . . . Allies Melted . | . . . . . Intel | -11 -10 -9 -9 -8 ------- Run | Yrd Mat Mat Min Mat Robot Analysis Total . | . . . . . Derelict Logs Recovered 2 | . . . 2 . Drone Launches . | . . . . . Drone Recoveries . | . . . . . Exploration | -11 -10 -9 -9 -8 ------------- Run | Yrd Mat Mat Min Mat Turns Passed 3197 | 317 763 458 708 951 Spaces Moved 1746 | 139 428 224 472 483 Core 10 | 9 . . . 1 Treads 371 | 130 241 . . . Legs 1365 | . 187 224 472 482 Wheels . | . . . . . Hover . | . . . . . Flight . | . . . . . Fastest Speed 50 | 50 120 120 120 120 Average Speed 147 | 152 142 184 139 139 Slowest Speed 500 | 160 190 190 190 500 Overloaded Moves . | . . . . . Propulsion Burnouts . | . . . . . Robots Hopped . | . . . . . Cave-ins Triggered . | . . . . . Exploration Rate (%) 42 | 7 59 19 79 46 Regions Visited 4 Branch Regions 1 Pre-discovered Areas 1 | . . . 1 . Known Exits Taken 2 | . . 1 1 . Unknown Exits Taken 2 | 1 1 . . . Scrap Searched 1 | . . . 1 . Spaces Dug 6 | . . 6 . . Terrain Destroyed 7 | . . 7 . . Melee . | . . . . . Projectile 7 | . . 7 . . AOE . | . . . . . Terrain Rammed . | . . . . . Walls Destroyed . | . . . . . Machines Disabled . | . . . . . Actions | -11 -10 -9 -9 -8 --------- Run | Yrd Mat Mat Min Mat Total 2024 | 184 495 240 498 607 Wait . | . . . . . Move 1742 | 138 427 223 471 483 Hop . | . . . . . Pick Up 34 | 9 7 1 6 11 Fast Attach 9 | . 4 . . 5 Attach 15 | 7 . 2 . 6 Detach . | . . . . . Swap 17 | . 4 4 3 6 Drop 21 | . 7 . 6 8 Fire 151 | 30 42 9 10 60 Melee . | . . . . . Ram 9 | . . . . 9 Kick 22 | . . 1 2 19 Crush 4 | . 4 . . . Escape Stasis . | . . . . . Rewire . | . . . . . Trap . | . . . . . Miscellaneous . | . . . . . Route ------- -11/Scrapyard -10/Materials -9/Materials (discovered 2 exits: *Min x2) -9/Mines (discovered 2 exits: *Mat x2) -8/Materials History --------- Turn | Location | Event 14 | -11/Scrapyard | Discovered new exit (range 14) 318 | -11/Scrapyard | Entered Materials 319 | -10/Materials | Build established: Mutant 1041 | -10/Materials | Discovered new exit (range 8) 1081 | -10/Materials | Entered another Materials area 1081 | -9/Materials | Evolved 2 slots: Utility x1, Weapon x1 1096 | -9/Materials | Identified exit to Mines 1383 | -9/Materials | Build established: Skirmisher 1539 | -9/Materials | Entered Mines 1835 | -9/Mines | Received a Rocket Launcher from a helpful Derelict 1888 | -9/Mines | Learned location of Storage (-7) 1894 | -9/Mines | A weapon hastily lodged in a ceiling crevice suddenly fell to the ground 1915 | -9/Mines | Identified exit to Materials 2236 | -9/Mines | Discovered exit to Materials (range 8) 2247 | -9/Mines | Entered Materials 2247 | -8/Materials | Evolved 2 slots: Power x1, Propulsion x1 2857 | -8/Materials | Build established: Scavenger-Skirmisher 3008 | -8/Materials | Lost 3 parts (1p1n1u) 3171 | -8/Materials | Core integrity fell below 50% 3190 | -8/Materials | Core integrity fell below 20% 3198 | -8/Materials | Destroyed by G-47 Trooper with Particle Gun Last Messages --------------- 03163_ K-01 Serf collects debris. 03169_ Flak Gun destroyed. 03172_ Critical hit (Burn: +37). 03173_ Slammed into G-47 Trooper. 03174_ Mining Laser destroyed. 03175_ Critical hit (Burn: +37). 03176_ Slammed into G-47 Trooper. 03177_ System corrupted: Substantial component data lost. 03179_ K-01 Serf collects debris. 03182_ Slammed into O-24 Administrator. 03184_ Slammed into G-47 Trooper. 03184_ Destabilizing: System corrupted (+1). 03187_ Slammed into G-47 Trooper. 03188_ Minigun destroyed. 03190_ Slammed into G-47 Trooper. 03191_ Seismic Detector destroyed. 03192_ Slammed into G-47 Trooper. 03194_ Imp. Heat Sink destroyed. 03194_ Slammed into G-47 Trooper. Map ----- +----------------------------------------------------+ | | | | | | | | | | | ??????#???#??????????????????????????????????????? | | #??#??????#????????#?????????????????????????????? | | ???????#???????#####?#???????????????????????????? | | ???????????#???# ==#?????????????????????????????? | | ################ ==#??#??????????????????????????? | | ==##????????????????????????????? | | ==#?????????????????????????????? | | [[#?????????????????????????????? | | #???#?????????????????????????? | | ######### #####?????????????????????????????? | | # #= ## #?????######??????????????????????? | | # ^ ^# """ ## #?? """ ##?????????????????????? | | # / "T" ## ## """"" = #?###??????????????????? | | # # ## ## """"" # ???????????????????? | | # # ## ## """"" * # ????????????????????? | | # # ## ## """ + ?????????????????????? | | # ######### ## #??????????????????????? | | # #???????# ## = * #??????????????????????? | | + #?#?????# ## [ #?? #??????????????????? | | #### #?????### ########+### ####???????????????? | | ?#?# #?#????# g@gg ????????? | | ???# ##??#??# g ????????? | | ???# #?????## kk o????????? | | #### #??????# k#######+#############+##?????????? | | = * #??????# #????? ????????????????????????? | | ##= ####???#= #??#?? "????????????????????????? | | ?# ###?#%* #????? "????????????????????????? | | ##! !#?###= #????? "????????????????????????? | | ?##!!!!###??# #????? ????????????????????????? | | #?######????# ##???? "????????????????????????? | | ??#????????? ????? ?????????????????????????? | | ???? !????? ?????????????????????????? | | ?????? ????? ?????????????????????????? | | ?????? ?????##?????????????????????????? | | #????#?# ????????????????????????????????? | | "" ????????#####????????????????????????????????? | | ""????"??????????????????????????????????????????? | | ?????????????????????????????????????????????????? | | ?? ??????????????????????????????????????????????? | | ?????????????????????????????????????????????????? | | ????????????????????????????????????????????????? | | ?????????????????????????????????????????????????? | | ?????????????????????????????????????????????????? | | ?????????????????????????????????????????????????? | | ?????????????????????????????????????????????????? | +----------------------------------------------------+ Best States ------------- Heat Dissipation 45 Energy Generation 23 Energy Capacity 415 Matter Stores 300 Matter Capacity 300 Sight Range 16 Robot Scan Range 14 Terrain Scan Range 16 Terrain Scan Density 10 Evasion (%) 55 Recoil Reduction 2 Item Schematics ----------------- Imp. Ion Engine | -8/Materials | Scanalyzed Robot Schematics ------------------ None Fabricated ------------ Nothing Alien Tech Used ----------------- None Achievements -------------- None Challenges ------------ None Game ------ Seed LobotomyGravmagShovel Manual? 0 Play Time 00:29:39 Cumulative 23.9 hours Start 2024.11.10 @ 09:50:51 End 2024.11.10 @ 10:16:42 Sessions 1 Manual Loads 0 Difficulty Rogue Special Mode None Game No. 56 Rogue 56 Adventurer 0 Explorer 0 Win Type - Total 0 Types 0/0/0/0/0/0/0/0/0 Lore% 11 Gallery% 20 Achievement% 19 Wizard Run 0 Options --------- Layout 1 ASCII 0 Keyboard 0 Movement Arrows Keybinds 0 Fullscreen 1 Font 24/Smallcaps Map View 50x40 Zoom Use 0% Tactical HUD 1 Map Filters NONE Filters NONE Steam 1 RUN: fddcab1d-2e29-4ce3-a26f-f91298eff7e2